[Event "Romanian-ch Women 2022"]
[Site "Eforie Nord"]
[Date "2022.02.27"]
[Round "9.8"]
[White "Schiopu, Oana-Magdalena"]
[Black "Marin, Irina-Luiza"]
[Result "0-1"]
[ECO "B15"]
[WhiteElo "1534"]
[BlackElo "2058"]
[Annotator "NA"]
[PlyCount "94"]
[EventDate "2022.02.20"]
[EventType "swiss"]
[EventCountry "ROU"]
[SourceTitle "playchess.com"]
[Source "ChessBase"]
[SourceQuality "1"]
[TimeControl "40/5400+30:900+30"]

1. e4 {[%emt 1:31:00]} c6 {[%emt 1:31:00]} 2. d4 {[%emt 0:00:30]} d5 {[%emt 0:00:30]} 3. Nc3 {[%emt 0:00:30]} g6 {[%emt 0:00:30]} 4. Nf3 {[%emt 0:00:30]} Bg7 {[%emt 0:00:30]} 5. Bf4 {[%emt 0:00:30]} Bg4 {[%emt 0:00:30]} 6. e5 {[%emt 0:00:30]} Qb6 {[%emt 0:00:30]} 7. b3 {[%emt 0:00:30]} Bxf3 {[%emt 0:00:30]} 8. gxf3 {[%emt 0:00:30]} e6 {[%emt 0:00:30]} 9. Qd2 {[%emt 0:00:30]} Nd7 {[%emt 0:00:30]} 10. h4 {[%emt 0:00:30]} h5 {[%emt 0:00:30]} 11. Bg5 {[%emt 0:00:30]} Nh6 {[%emt 0:00:30]} 12. Bh3 {[%emt 0:00:30]} c5 {[%emt 0:00:30]} 13. Na4 {[%emt 0:00:30]} Qc7 {[%emt 0:00:30]} 14. c3 {[%emt 0:00:30]} cxd4 {[%emt 0:00:30]} 15. cxd4 {[%emt 0:00:30]} Nxe5 16. Ke2 {[%emt 0:00:30]} Nc6 {[%emt 0:01:00]} 17. Be3 {[%emt 0:00:30]} Rc8 {[%emt 0:00:30]} 18. Rac1 {[%emt 0:00:30]} Nf5 {[%emt 0:00:30]} 19. Bxf5 {[%emt 0:00:30]} exf5 {[%emt 0:00:30]} 20. Kf1 {[%emt 0:00:30]} O-O {[%emt 0:00:30]} 21. Kg2 {[%emt 0:00:30]} Qe7 {[%emt 0:00:30]} 22. Nc3 Qd7 {[%emt 0:00:30]} 23. Ne2 {[%emt 0:01:00]} Kh7 {[%emt 0:00:30]} 24. Rh3 {[%emt 0:00:30]} Ne7 {[%emt 0:00:30]} 25. Rhh1 {[%emt 0:00:30]} Rxc1 {[%emt 0:00:30]} 26. Rxc1 {[%emt 0:00:30]} Rc8 {[%emt 0:00:30]} 27. Rxc8 {[%emt 0:00:30]} Qxc8 28. Qb4 {[%emt 0:00:30]} Qd7 {[%emt 0:01:00]} 29. Qc5 {[%emt 0:00:30]} b6 {[%emt 0:00:30]} 30. Qc2 {[%emt 0:00:30]} f4 {[%emt 0:00:30]} 31. Nxf4 {[%emt 0:00:30]} Nf5 {[%emt 0:00:30]} 32. Kf1 {[%emt 0:00:30]} Nxh4 {[%emt 0:00:30]} 33. Ke2 {[%emt 0:00:30]} Nf5 {[%emt 0:00:30]} 34. Qd3 {[%emt 0:00:30]} h4 {[%emt 0:00:30]} 35. Nh3 Nxd4+ {[%emt 0:00:30]} 36. Bxd4 {[%emt 0:01:00]} Qxh3 {[%emt 0:00:30]} 37. Bxg7 {[%emt 0:00:30]} Kxg7 {[%emt 0:00:30]} 38. Qd4+ {[%emt 0:00:30]} Kh7 {[%emt 0:00:30]} 39. Kd2 {[%emt 0:00:30]} Qxf3 {[%emt 0:00:30]} 40. Qxh4+ {[%emt 0:00:30]} Kg7 {[%emt 0:00:30]} 41. Qd4+ {[%emt 0:15:30]} f6 {[%emt 0:15:30]} 42. Kc1 {[%emt 0:00:30]} Qe4 {[%emt 0:00:30]} 43. Qd2 {[%emt 0:00:30]} g5 {[%emt 0:00:30]} 44. Kb2 {[%emt 0:00:30]} a5 {[%emt 0:00:30]} 45. Kc1 {[%emt 0:00:30]} Kg6 46. Kb2 {[%emt 0:00:30]} Kf5 {[%emt 0:01:00]} 47. Kc1 {[%emt 0:00:30]} Qf4 {[%emt 0:00:30]} 0-1

[Event "Romanian-ch Women 2022"]
[Site "Eforie Nord"]
[Date "2022.02.27"]
[Round "9.9"]
[White "Bucur, Denisa-Andreea"]
[Black "Trifoi, Mihaela-Ioana"]
[Result "1/2-1/2"]
[ECO "D35"]
[WhiteElo "2023"]
[BlackElo "1893"]
[Annotator "ChessBase"]
[PlyCount "134"]
[EventDate "2022.02.20"]
[EventType "swiss"]
[EventCountry "ROU"]
[SourceTitle "playchess.com"]
[Source "ChessBase"]
[SourceQuality "1"]
[TimeControl "40/5400+30:900+30"]

1. d4 {[%emt 0:00:17]} d5 {[%emt 0:00:18]} 2. c4 {[%emt 0:00:07]} e6 {[%emt 0:00:05]} 3. Nc3 {[%emt 0:00:06]} Nf6 {[%emt 0:00:06]} 4. Nf3 {[%emt 0:00:27]} Be7 {[%emt 0:01:29]} 5. Bf4 {[%emt 0:00:29]} O-O {[%emt 0:02:27]} 6. e3 {[%emt 0:00:15]} c6 {[%emt 0:12:17]} 7. Qc2 {[%emt 0:00:16]} Nbd7 {[%emt 0:01:04]} 8. cxd5 {[%emt 0:02:23]} exd5 {[%emt 0:00:17]} 9. Bd3 {[%emt 0:00:40]} Re8 {[%emt 0:01:26]} 10. O-O {[%emt 0:01:55]} Nf8 {[%emt 0:00:20]} 11. h3 {[%emt 0:00:11]} Ng6 {[%emt 0:01:40]} 12. Bh2 {[%emt 0:00:26]} Bd6 {[%emt 0:00:32]} 13. Bxd6 {[%emt 0:02:29]} Qxd6 {[%emt 0:00:04]} 14. Rab1 {[%emt 0:00:09]} Be6 {[%emt 0:01:31]} 15. b4 {[%emt 0:01:13]} a6 {[%emt 0:00:34]} 16. Na4 {[%emt 0:05:17]} Ne4 {[%emt 0:03:42]} 17. Nc5 {[%emt 0:04:09]} Qe7 {[%emt 0:00:45]} 18. a4 {[%emt 0:10:13]} Bc8 {[%emt 0:04:14]} 19. b5 {[%emt 0:06:06]} cxb5 {[%emt 0:12:06]} 20. axb5 {[%emt 0:00:15]} Ng5 {[%emt 0:00:15]} 21. Nxg5 {[%emt 0:08:51]} Qxg5 {[%emt 0:00:07]} 22. Kh2 {[%emt 0:02:40]} Qh5 {[%emt 0:11:43]} 23. Qd1 {[%emt 0:17:36]} Qxd1 {[%emt 0:06:29]} 24. Rfxd1 {[%emt 0:00:36]} axb5 {[%emt 0:00:55]} 25. Bxb5 {[%emt 0:08:58]} Re7 {[%emt 0:04:24]} 26. Ra1 {[%emt 0:02:45]} Rb8 {[%emt 0:00:56]} 27. Rdc1 {[%emt 0:01:52]} b6 {[%emt 0:01:52]} 28. Na6 {[%emt 0:02:51]} Bxa6 {[%emt 0:08:45]} 29. Rxa6 {[%emt 0:00:08]} Re6 {[%emt 0:02:35]} 30. Rc7 {[%emt 0:02:01]} Re7 {[%emt 0:01:58]} 31. Raa7 {[%emt 0:04:47]} Rxc7 {[%emt 0:02:25]} 32. Rxc7 {[%emt 0:00:02]} Kf8 {[%emt 0:00:18]} 33. Kg3 {[%emt 0:00:31]} Ne7 {[%emt 0:00:09]} 34. h4 {[%emt 0:00:41]} f6 {[%emt 0:01:38]} 35. Kf4 {[%emt 0:02:02]} Kf7 {[%emt 0:06:36]} 36. g4 {[%emt 0:02:54]} Ke6 {[%emt 0:01:27]} 37. f3 {[%emt 0:05:00]} f5 {[%emt 0:03:38]} 38. Ra7 {[%emt 0:02:01]} fxg4 {[%emt 0:03:12]} 39. Kxg4 {[%emt 0:00:09]} Rd8 {[%emt 0:00:34]} 40. Rb7 {[%emt 0:00:00]} Rd6 {[%emt 0:00:00]} 41. h5 {[%emt 0:04:16]} Kf6 {[%emt 0:03:05]} 42. Bd3 {[%emt 0:01:47]} h6 {[%emt 0:01:45]} 43. Rb8 {[%emt 0:00:19]} Kf7 {[%emt 0:01:07]} 44. Bb5 {[%emt 0:00:59]} g6 {[%emt 0:05:06]} 45. Be8+ {[%emt 0:00:37]} Kg7 {[%emt 0:00:26]} 46. hxg6 {[%emt 0:02:18]} Nxg6 {[%emt 0:00:08]} 47. Rb7+ {[%emt 0:01:14]} Kg8 {[%emt 0:04:36]} 48. Bf7+ {[%emt 0:03:03]} Kf8 {[%emt 0:00:59]} 49. Bxg6 {[%emt 0:00:39]} Rxg6+ {[%emt 0:00:07]} 50. Kf5 {[%emt 0:00:06]} Rg3 {[%emt 0:01:57]} 51. Kf4 {[%emt 0:01:03]} Rg6 {[%emt 0:00:12]} 52. Ke5 {[%emt 0:01:33]} Rg5+ {[%emt 0:01:54]} 53. Kf6 {[%emt 0:00:33]} Kg8 {[%emt 0:00:32]} 54. Rxb6 {[%emt 0:03:36]} Rg3 {[%emt 0:00:18]} 55. Ke5 {[%emt 0:01:04]} Rxf3 {[%emt 0:00:09]} 56. Rxh6 {[%emt 0:00:06]} Rxe3+ {[%emt 0:00:03]} 57. Kxd5 {[%emt 0:00:06]} Kf7 {[%emt 0:00:14]} 58. Kd6 {[%emt 0:01:16]} Ra3 {[%emt 0:00:11]} 59. Rh7+ {[%emt 0:00:52]} Ke8 {[%emt 0:00:07]} 60. d5 {[%emt 0:00:59]} Ra6+ {[%emt 0:00:20]} 61. Ke5 {[%emt 0:00:12]} Kd8 {[%emt 0:00:16]} 62. Rg7 {[%emt 0:01:54]} Rb6 {[%emt 0:00:48]} 63. d6 {[%emt 0:01:59]} Rb1 {[%emt 0:00:11]} 64. Ke6 {[%emt 0:00:58]} Re1+ {[%emt 0:00:07]} 65. Kd5 {[%emt 0:00:01]} Rd1+ {[%emt 0:00:09]} 66. Ke6 {[%emt 0:00:04]} Re1+ {[%emt 0:00:06]} 67. Kd5 {[%emt 0:00:02]} Rd1+ {[%emt 0:00:05]} 1/2-1/2

[Event "Romanian-ch Women 2022"]
[Site "Eforie Nord"]
[Date "2022.02.27"]
[Round "9.10"]
[White "Obada, Ema"]
[Black "Batagan, Ilinca-Petra"]
[Result "1-0"]
[ECO "B52"]
[WhiteElo "2010"]
[BlackElo "1881"]
[Annotator "NA"]
[PlyCount "91"]
[EventDate "2022.02.20"]
[EventType "swiss"]
[EventCountry "ROU"]
[SourceTitle "playchess.com"]
[Source "ChessBase"]
[SourceQuality "1"]
[TimeControl "40/5400+30:900+30"]

1. e4 {[%emt 0:00:02]} c5 {[%emt 0:00:10]} 2. Nf3 {[%emt 0:00:06]} d6 {[%emt 0:00:15]} 3. Bb5+ {[%emt 0:00:06]} Bd7 {[%emt 0:00:36]} 4. Bxd7+ {[%emt 0:00:06]} Qxd7 {[%emt 0:00:05]} 5. c4 {[%emt 0:00:06]} Nf6 {[%emt 0:00:38]} 6. Nc3 {[%emt 0:00:07]} g6 {[%emt 0:00:11]} 7. d4 {[%emt 0:02:09]} cxd4 {[%emt 0:00:15]} 8. Nxd4 {[%emt 0:00:06]} Bg7 {[%emt 0:00:05]} 9. f3 {[%emt 0:00:38]} O-O {[%emt 0:00:40]} 10. Be3 {[%emt 0:00:26]} Rc8 {[%emt 0:03:31]} 11. b3 {[%emt 0:02:52]} a6 {[%emt 0:01:33]} 12. Rc1 {[%emt 0:03:15]} Nc6 {[%emt 0:01:56]} 13. Na4 {[%emt 0:11:18]} Qd8 {[%emt 0:02:03]} 14. Ne2 {[%emt 0:03:22]} Nd7 {[%emt 0:02:03]} 15. O-O {[%emt 0:09:27]} b5 {[%emt 0:02:41]} 16. cxb5 {[%emt 0:00:15]} axb5 {[%emt 0:00:07]} 17. Nac3 {[%emt 0:00:05]} Rab8 {[%emt 0:06:25]} 18. Qd2 {[%emt 0:01:21]} Nc5 {[%emt 0:05:58]} 19. Rfd1 {[%emt 0:01:58]} Ne5 {[%emt 0:06:51]} 20. Nd5 {[%emt 0:07:48]} Ned3 {[%emt 0:10:19]} 21. Rc2 {[%emt 0:00:55]} e6 {[%emt 0:02:51]} 22. Ndf4 {[%emt 0:05:27]} Nxf4 {[%emt 0:02:02]} 23. Nxf4 {[%emt 0:01:22]} Nb7 {[%emt 0:06:34]} 24. Rxc8 {[%emt 0:05:16]} Rxc8 {[%emt 0:02:08]} 25. Ne2 {[%emt 0:04:16]} Qe8 {[%emt 0:07:12]} 26. Kf2 {[%emt 0:04:25]} Qc6 {[%emt 0:06:30]} 27. Rc1 {[%emt 0:02:31]} Qd7 {[%emt 0:00:20]} 28. Rxc8+ {[%emt 0:00:16]} Qxc8 {[%emt 0:00:02]} 29. Qb4 {[%emt 0:00:22]} Qc6 {[%emt 0:01:43]} 30. a4 {[%emt 0:01:50]} bxa4 {[%emt 0:00:45]} 31. Qxa4 {[%emt 0:01:15]} Qc8 {[%emt 0:04:38]} 32. b4 {[%emt 0:01:00]} h5 {[%emt 0:07:26]} 33. Qa6 {[%emt 0:01:02]} Kh7 {[%emt 0:00:47]} 34. b5 {[%emt 0:00:58]} Qc7 {[%emt 0:05:10]} 35. Qc6 {[%emt 0:00:57]} Qb8 {[%emt 0:01:37]} 36. b6 {[%emt 0:01:06]} Qa8 {[%emt 0:04:42]} 37. Bg5 {[%emt 0:07:15]} Qa5 {[%emt 0:04:55]} 38. Qxb7 {[%emt 0:04:02]} Qxg5 {[%emt 0:00:05]} 39. Qxf7 {[%emt 0:00:41]} Qc5+ {[%emt 0:00:21]} 40. Kg3 {[%emt 0:00:00]} Qe5+ {[%emt 0:00:00]} 41. Kh3 {[%emt 0:02:21]} d5 {[%emt 0:04:30]} 42. Nf4 {[%emt 0:02:40]} d4 {[%emt 0:03:08]} 43. Nxe6 {[%emt 0:03:19]} Qf6 {[%emt 0:01:06]} 44. Qxf6 {[%emt 0:00:11]} Bxf6 {[%emt 0:00:02]} 45. b7 {[%emt 0:00:09]} Be5 {[%emt 0:00:09]} 46. Nxd4 {[%emt 0:00:04]} 1-0

[Event "Romanian-ch Women 2022"]
[Site "Eforie Nord"]
[Date "2022.02.27"]
[Round "9.11"]
[White "Schiopu, Andreea-Alexandra"]
[Black "Anghel, Maria"]
[Result "0-1"]
[ECO "D11"]
[WhiteElo "1733"]
[BlackElo "1834"]
[Annotator "NA"]
[PlyCount "98"]
[EventDate "2022.02.20"]
[EventType "swiss"]
[EventCountry "ROU"]
[SourceTitle "playchess.com"]
[Source "ChessBase"]
[SourceQuality "1"]
[TimeControl "40/5400+30:900+30"]

1. Nf3 {[%emt 0:00:04]} d5 {[%emt 0:00:07]} 2. d4 {[%emt 0:00:11]} Nf6 {[%emt 0:00:07]} 3. g3 {[%emt 0:00:28]} c6 {[%emt 0:00:13]} 4. c4 {[%emt 0:02:43]} Bg4 {[%emt 0:00:23]} 5. Bg2 {[%emt 0:02:06]} e6 {[%emt 0:01:01]} 6. Qb3 {[%emt 0:04:01]} Qb6 {[%emt 0:00:34]} 7. c5 {[%emt 0:00:51]} Qa6 {[%emt 0:01:34]} 8. Qd1 {[%emt 0:10:10]} b6 {[%emt 0:09:07]} 9. b4 {[%emt 0:04:29]} Nbd7 {[%emt 0:05:05]} 10. O-O {[%emt 0:05:57]} Be7 {[%emt 0:15:19]} 11. Re1 {[%emt 0:11:52]} O-O {[%emt 0:06:28]} 12. Nbd2 {[%emt 0:04:35]} Qb7 {[%emt 0:10:33]} 13. Qb3 {[%emt 0:10:33]} Rfb8 {[%emt 0:04:52]} 14. h3 {[%emt 0:04:39]} Bxf3 {[%emt 0:04:19]} 15. Bxf3 {[%emt 0:00:51]} a5 {[%emt 0:02:08]} 16. bxa5 {[%emt 0:17:28]} bxc5 {[%emt 0:01:43]} 17. Ba3 {[%emt 0:03:02]} Rxa5 {[%emt 0:07:32]} 18. Qxb7 {[%emt 0:03:53]} Rxb7 {[%emt 0:00:10]} 19. Bxc5 {[%emt 0:00:13]} Bxc5 {[%emt 0:04:36]} 20. dxc5 {[%emt 0:00:07]} Nxc5 {[%emt 0:01:11]} 21. Rec1 {[%emt 0:02:06]} g6 {[%emt 0:03:18]} 22. Rc2 {[%emt 0:01:08]} Rba7 {[%emt 0:04:32]} 23. a3 {[%emt 0:02:56]} Nfd7 {[%emt 0:04:19]} 24. Rc3 {[%emt 0:01:09]} e5 {[%emt 0:00:55]} 25. Rac1 {[%emt 0:02:25]} e4 {[%emt 0:02:43]} 26. Bg2 {[%emt 0:00:31]} Rxa3 {[%emt 0:03:00]} 27. Rxc5 {[%emt 0:00:31]} Nxc5 {[%emt 0:00:05]} 28. Rxc5 {[%emt 0:00:02]} Ra2 {[%emt 0:00:37]} 29. Nxe4 {[%emt 0:03:36]} dxe4 {[%emt 0:00:37]} 30. Bxe4 {[%emt 0:00:04]} Rxe2 {[%emt 0:00:38]} 31. Bxc6 {[%emt 0:01:12]} Ra1+ {[%emt 0:00:29]} 32. Kg2 {[%emt 0:00:22]} Raa2 {[%emt 0:00:14]} 33. Bd5 {[%emt 0:00:32]} Rxf2+ {[%emt 0:00:34]} 34. Kg1 {[%emt 0:00:04]} Rfc2 {[%emt 0:01:34]} 35. Rxc2 {[%emt 0:01:32]} Rxc2 {[%emt 0:00:08]} 36. Be4 {[%emt 0:00:21]} Re2 {[%emt 0:00:57]} 37. Bf3 {[%emt 0:00:07]} Rb2 {[%emt 0:00:22]} 38. Kf1 {[%emt 0:00:20]} f5 {[%emt 0:00:53]} 39. Be2 {[%emt 0:00:36]} Kg7 {[%emt 0:01:08]} 40. Kf2 {[%emt 0:00:00]} g5 {[%emt 0:00:00]} 41. Kf3 {[%emt 0:00:18]} Kf6 {[%emt 0:02:13]} 42. Bc4 {[%emt 0:00:47]} g4+ {[%emt 0:01:09]} 43. hxg4 {[%emt 0:00:21]} fxg4+ {[%emt 0:00:07]} 44. Ke3 {[%emt 0:00:16]} Kg5 {[%emt 0:00:33]} 45. Be2 {[%emt 0:00:21]} h5 {[%emt 0:00:51]} 46. Kf2 {[%emt 0:00:39]} h4 {[%emt 0:00:35]} 47. gxh4+ {[%emt 0:00:17]} Kxh4 {[%emt 0:00:13]} 48. Kf1 {[%emt 0:00:07]} Kg3 {[%emt 0:01:06]} 49. Bc4 {[%emt 0:00:21]} Kh2 {[%emt 0:00:33]} 0-1

[Event "Romanian-ch Women 2022"]
[Site "Eforie Nord"]
[Date "2022.02.27"]
[Round "9.12"]
[White "Pitigoi, Sabina-Andreea"]
[Black "Pirvan, Maria"]
[Result "1/2-1/2"]
[ECO "D32"]
[WhiteElo "1766"]
[BlackElo "1627"]
[Annotator "NA"]
[PlyCount "95"]
[EventDate "2022.02.20"]
[EventType "swiss"]
[EventCountry "ROU"]
[SourceTitle "playchess.com"]
[Source "ChessBase"]
[SourceQuality "1"]
[TimeControl "40/5400+30:900+30"]

1. c4 {[%emt 0:00:02]} c5 {[%emt 0:00:53]} 2. Nc3 {[%emt 0:00:06]} e6 {[%emt 0:00:09]} 3. Nf3 {[%emt 0:00:34]} d5 {[%emt 0:01:00]} 4. cxd5 {[%emt 0:00:25]} exd5 {[%emt 0:00:06]} 5. d4 {[%emt 0:00:04]} Nc6 {[%emt 0:01:03]} 6. e3 {[%emt 0:01:13]} Nf6 {[%emt 0:00:20]} 7. Be2 {[%emt 0:01:43]} Be7 {[%emt 0:01:04]} 8. dxc5 {[%emt 0:00:31]} Bxc5 {[%emt 0:00:11]} 9. O-O {[%emt 0:00:15]} O-O {[%emt 0:00:19]} 10. a3 {[%emt 0:02:34]} a5 {[%emt 0:03:47]} 11. Nb5 {[%emt 0:05:31]} Bg4 {[%emt 0:07:18]} 12. Nbd4 {[%emt 0:02:34]} Nxd4 {[%emt 0:07:48]} 13. Nxd4 {[%emt 0:00:46]} Bxe2 {[%emt 0:06:37]} 14. Nxe2 {[%emt 0:00:18]} Qd6 {[%emt 0:04:44]} 15. b3 {[%emt 0:02:15]} Rfd8 {[%emt 0:09:14]} 16. Bb2 {[%emt 0:00:23]} Ng4 {[%emt 0:03:44]} 17. Ng3 {[%emt 0:01:13]} Qg6 {[%emt 0:09:06]} 18. Bd4 {[%emt 0:03:10]} Bd6 {[%emt 0:03:51]} 19. Qf3 {[%emt 0:02:21]} Be5 {[%emt 0:04:09]} 20. Rfd1 {[%emt 0:03:25]} Bxd4 {[%emt 0:12:00]} 21. Rxd4 {[%emt 0:00:08]} Ne5 {[%emt 0:00:17]} 22. Qf4 {[%emt 0:09:01]} Nc6 {[%emt 0:04:27]} 23. Rd2 {[%emt 0:00:26]} f6 {[%emt 0:01:47]} 24. Rad1 {[%emt 0:01:12]} Qf7 {[%emt 0:00:26]} 25. Qf3 {[%emt 0:03:43]} Ne5 {[%emt 0:01:10]} 26. Qe2 {[%emt 0:00:40]} Qe7 {[%emt 0:02:13]} 27. Qb5 {[%emt 0:04:57]} Qxa3 {[%emt 0:03:48]} 28. Rxd5 {[%emt 0:00:08]} Nf7 {[%emt 0:02:13]} 29. Qxb7 {[%emt 0:09:11]} Rdb8 {[%emt 0:00:39]} 30. Qc6 {[%emt 0:06:23]} Qxb3 {[%emt 0:02:31]} 31. R5d3 {[%emt 0:02:45]} Qb4 {[%emt 0:01:11]} 32. Rd7 {[%emt 0:01:59]} Qf8 {[%emt 0:03:37]} 33. Qe6 {[%emt 0:03:14]} a4 {[%emt 0:01:32]} 34. Nf5 {[%emt 0:00:22]} a3 {[%emt 0:02:22]} 35. Nd6 {[%emt 0:09:09]} a2 {[%emt 0:01:27]} 36. Rxf7 {[%emt 0:01:00]} Qxd6 {[%emt 0:00:33]} 37. Rf8+ {[%emt 0:06:36]} Kxf8 {[%emt 0:00:05]} 38. Qxd6+ {[%emt 0:00:03]} Kg8 {[%emt 0:00:08]} 39. Qd5+ {[%emt 0:00:13]} Kh8 {[%emt 0:00:33]} 40. h3 {[%emt 0:00:00]} a1=Q {[%emt 0:00:00]} 41. Rxa1 {[%emt 0:00:50]} Rxa1+ {[%emt 0:00:52]} 42. Kh2 {[%emt 0:00:06]} Rab1 {[%emt 0:01:39]} 43. f4 {[%emt 0:01:17]} R1b4 {[%emt 0:10:50]} 44. e4 {[%emt 0:01:18]} Re8 {[%emt 0:00:31]} 45. e5 {[%emt 0:00:40]} fxe5 {[%emt 0:01:22]} 46. fxe5 {[%emt 0:00:10]} Rb6 {[%emt 0:00:21]} 47. Qf7 {[%emt 0:00:37]} Rbe6 {[%emt 0:00:20]} 48. Qf4 {[%emt 0:03:42]} 1/2-1/2